fUST/lending_fUST_20250901
["ID","MTS","AMOUNT","RATE_DAILY","PERIOD"]
[382695599,1756710657567,-480.0,0.00014835,2]
[382695601,1756710657577,-845.7,0.00014835,2]
[382695603,1756710657586,-492.52,0.00014835,2]
[382695605,1756710657596,-480.0,0.00014835,2]
[382695607,1756710657606,-480.0,0.00014835,2]
[382695608,1756710657615,-480.0,0.00014835,2]
[382695610,1756710657625,-588.55029623,0.00014835,2]
[382695611,1756710657635,-480.0,0.00014835,2]
[382695613,1756710657644,-480.0,0.00014835,2]
[382695615,1756710657653,-1012.35,0.00014835,2]
[382695617,1756710657663,-480.0,0.00014835,2]
[382695619,1756710657673,-480.0,0.00014835,2]
[382695621,1756710657682,-480.0,0.00014835,2]
[382695623,1756710657691,-480.0,0.00014835,2]
[382695624,1756710657700,-572.55,0.00014835,2]
[382695626,1756710657709,-480.0,0.00014835,2]
[382695628,1756710657719,-480.0,0.00014835,2]
[382695630,1756710657728,-480.0,0.00014835,2]
[382695632,1756710657737,-480.0,0.00014835,2]
[382695633,1756710657747,-486.95,0.00014835,2]
[382695635,1756710657756,-755.11,0.00014835,2]
[382695637,1756710657765,-480.0,0.00014835,2]
[382695639,1756710657774,-480.0,0.00014836,2]
[382695641,1756710657784,-692.96,0.00014836,2]
[382695643,1756710657795,-895.01,0.00014836,2]
[382695645,1756710657804,-1036.69,0.00014836,2]
[382695646,1756710657813,-514.62,0.00014836,2]
[382695648,1756710657823,-480.0,0.00014836,2]
[382695650,1756710657832,-597.14,0.00014836,2]
[382695652,1756710657842,-566.67,0.00014836,2]
[382695654,1756710657851,-557.89,0.00014836,2]
[382695656,1756710657860,-480.0,0.00014836,2]
[382695657,1756710657871,-794.7,0.00014836,2]
[382695659,1756710657880,-480.0,0.00014836,2]
[382695661,1756710657889,-526.85,0.00014836,2]
[382695663,1756710657899,-817.22,0.00014836,2]
[382695665,1756710657908,-1428.46,0.00014836,2]
[382695667,1756710657917,-804.71,0.00014836,2]
[382695669,1756710657926,-480.0,0.00014836,2]
[382695670,1756710657939,-480.0,0.00014836,2]
[382695672,1756710657949,-480.0,0.00014836,2]
[382695674,1756710657958,-545.74,0.00014836,2]
[382695676,1756710657967,-480.0,0.00014836,2]
[382695678,1756710657977,-480.0,0.00014837,2]
[382695679,1756710657986,-480.0,0.00014837,2]
[382695681,1756710657995,-480.0,0.00014837,2]
[382695683,1756710658005,-480.0,0.00014837,2]
[382695685,1756710658015,-480.0,0.00014837,2]
[382695687,1756710658025,-480.0,0.00014837,2]
[382695689,1756710658034,-480.0,0.00014837,2]
[382695691,1756710658044,-480.0,0.00014837,2]
[382695692,1756710658053,-480.0,0.00014837,2]
[382695694,1756710658062,-805.25,0.00014837,2]
[382695696,1756710658072,-646.06,0.00014837,2]
[382695698,1756710658082,-480.0,0.00014837,2]
[382695700,1756710658091,-480.0,0.00014837,2]
[382695702,1756710658102,-480.0,0.00014837,2]
[382695703,1756710658111,-480.0,0.00014837,2]
[382695705,1756710658120,-480.0,0.00014837,2]
[382695707,1756710658130,-641.61,0.00014837,2]
[382695709,1756710658140,-693.51,0.00014837,2]
[382695711,1756710658149,-480.0,0.00014837,2]
[382695713,1756710658159,-480.0,0.00014837,2]
[382695715,1756710658168,-564.58,0.00014837,2]
[382695717,1756710658177,-772.76,0.00014837,2]
[382695718,1756710658186,-480.0,0.00014837,2]
[382695720,1756710658196,-480.0,0.00014837,2]
[382695722,1756710658205,-923.46,0.00014837,2]
[382695724,1756710658215,-480.0,0.00014837,2]
[382695726,1756710658224,-480.0,0.00014837,2]
[382695728,1756710658234,-480.0,0.00014837,2]
[382695730,1756710658244,-480.0,0.00014837,2]
[382695732,1756710658253,-151.0,0.00014837,2]
[382695734,1756710658262,-480.0,0.00014837,2]
[382695735,1756710658271,-480.0,0.00014837,2]
[382695737,1756710658281,-480.0,0.00014837,2]
[382695739,1756710658290,-480.0,0.00014837,2]
[382695741,1756710658299,-480.0,0.00014837,2]
[382695743,1756710658308,-480.0,0.00014837,2]
[382695745,1756710658318,-482.61,0.00014837,2]
[382695747,1756710658327,-558.69,0.00014837,2]
[382695749,1756710658339,-1175.92,0.00014837,2]
[382695750,1756710658348,-617.83,0.00014837,2]
[382695752,1756710658357,-480.0,0.00014837,2]
[382695754,1756710658367,-480.0,0.00014837,2]
[382695756,1756710658376,-487.03324631,0.00014837,2]
[382695758,1756710658386,-606.23,0.00014837,2]
[382695760,1756710658395,-525.85,0.00014837,2]
[382695761,1756710658404,-481.47655631,0.00014837,2]
[382695763,1756710658414,-480.0,0.00014837,2]
[382695765,1756710658423,-151.0,0.000149,2]
[382695767,1756710658433,-3000.0,0.00014996,2]
[382695769,1756710658442,-151.0,0.00015,2]
[382695771,1756710658452,-151.0,0.00015,2]
[382695773,1756710658461,-160.0,0.00015,2]
[382695774,1756710658471,-887.38197957,0.00015007,2]
[382695776,1756710658481,-380.70034614,0.00015023,2]
[382695778,1756710658490,-250.0,0.00015031,2]
[382695780,1756710658500,-2000.0,0.00015068,2]
[382695782,1756710658509,-4000.0,0.00015082,2]
[382695784,1756710658518,-5069.39318738,0.00015083,2]
[382695786,1756710658527,-151.0,0.000151,2]
[382695787,1756710658537,-480.0,0.00015106,2]
[382695789,1756710658547,-480.0,0.00015106,2]
[382695791,1756710658557,-1190.77,0.00015106,2]
[382695793,1756710658567,-199.53260557,0.00015106,2]
[382695795,1756710658578,-480.0,0.00015106,2]
[382695797,1756710658587,-900.84,0.00015106,2]
[382695799,1756710658597,-1808.15,0.00015106,2]
[382695801,1756710658607,-480.0,0.00015106,2]
[382695803,1756710658619,-1251.99,0.00015106,2]
[382695805,1756710658628,-480.0,0.00015106,2]
[382695807,1756710658638,-1764.67,0.00015106,2]
[382695808,1756710658647,-412.86565476,0.00015107,2]
[382695810,1756710658657,-1432.0,0.00015107,2]
[382695812,1756710658666,-480.0,0.00015107,2]
[382695814,1756710658675,-851.54,0.00015107,2]
[382695816,1756710658684,-346.5542086,0.00015107,2]
[382695818,1756710658694,-480.0,0.00015107,2]
[382695820,1756710658703,-480.0,0.00015107,2]
[382695822,1756710658712,-480.0,0.00015107,2]
[382695823,1756710658721,-480.0,0.00015107,2]
[382695825,1756710658731,-480.0,0.00015107,2]
[382695827,1756710658740,-480.0,0.00015107,2]
[382695829,1756710658749,-480.0,0.00015107,2]
[382695831,1756710658759,-480.0,0.00015107,2]
[382695833,1756710658767,-480.0,0.00015107,2]
[382695835,1756710658776,-581.78,0.00015107,2]
[382695836,1756710658785,-504.59,0.00015107,2]
[382695838,1756710658794,-907.92,0.00015107,2]
[382695840,1756710658803,-480.0,0.00015107,2]
[382695842,1756710658813,-589.06,0.00015107,2]
[382695844,1756710658822,-623.19,0.00015107,2]
[382695846,1756710658831,-480.0,0.00015107,2]
[382695848,1756710658841,-480.0,0.00015107,2]
[382695850,1756710658850,-480.0,0.00015107,2]
[382695851,1756710658859,-480.0,0.00015107,2]
[382695853,1756710658869,-480.0,0.00015107,2]
[382695855,1756710658878,-631.58,0.00015107,2]
[382695857,1756710658887,-480.0,0.00015107,2]
[382695859,1756710658897,-817.78,0.00015107,2]
[382695861,1756710658906,-634.08,0.00015107,2]
[382695862,1756710658915,-480.0,0.00015107,2]
[382695864,1756710658925,-480.0,0.00015107,2]
[382695866,1756710658939,-480.0,0.00015107,2]
[382695868,1756710658947,-480.0,0.00015107,2]
[382695870,1756710658956,-7.01709786,0.00015107,2]
[382695873,1756710658981,-744.64290214,0.00015107,2]
[382695875,1756710658990,-480.0,0.00015107,2]
[382695877,1756710658999,-480.56,0.00015107,2]
[382695878,1756710659009,-787.42,0.00015107,2]
[382695880,1756710659018,-964.57,0.00015107,2]
[382695881,1756710659027,-480.0,0.00015107,2]
[382695882,1756710659036,-443.04397978,0.00015107,2]
[382695883,1756710659131,-480.0,0.00014011,2]
[382695884,1756710659140,-211.17944584,0.00014011,2]
[382695885,1756710659152,-268.82055416,0.00014011,2]
[382695886,1756710659161,-613.97902316,0.00014285,2]
[382695887,1756710659171,-1000.0,0.00014289,2]
[382695888,1756710659180,-480.0,0.00014559,2]
[382695889,1756710659189,-480.0,0.00014833,2]
[382695890,1756710659199,-348.65602022,0.00015107,2]
[382695891,1756710659208,-480.0,0.00015107,2]
[382695892,1756710659218,-2155.71,0.00015107,2]
[382695893,1756710659227,-517.84,0.00015107,2]
[382695894,1756710659237,-480.0,0.00015107,2]
[382695895,1756710659246,-682.89043346,0.00015107,2]
[382695896,1756710659258,-15.73956654,0.00015107,2]
[382695897,1756710659268,-480.0,0.00015107,2]
[382695898,1756710659277,-145.26266478,0.00015107,2]
[382695899,1756710659289,-599.11733522,0.00015107,2]
[382695900,1756710659299,-480.0,0.00015107,2]
[382695901,1756710659308,-480.0,0.00015107,2]
[382695902,1756710659318,-1049.21,0.00015107,2]
[382695903,1756710659327,-590.34,0.00015107,2]
[382695904,1756710659337,-645.2,0.00015107,2]
[382695905,1756710659347,-365.76220789,0.00015107,2]
[382695906,1756710659356,-480.0,0.00015107,2]
[382695907,1756710659366,-699.41,0.00015107,2]
[382695908,1756710659375,-480.0,0.00015107,2]
[382695909,1756710659384,-480.0,0.00015107,2]
[382695910,1756710659394,-451.47362627,0.00015107,2]
[382698355,1756710726379,415.0,0.00027,120]
[382698356,1756710727385,1000.0,0.00016,16]
[382698357,1756710729680,2296.56450051,0.00013911,2]
[382698358,1756710746964,1000.0,0.00027,120]
[382698360,1756710936375,818.201229,0.00013699,2]
[382698362,1756711031378,165.139229,0.00013117,2]
[382698363,1756711031598,165.139229,0.00013117,120]
[382698367,1756711082803,489.98579864,0.00013868,2]
[382698368,1756711083031,1010.01420136,0.00013868,2]
[382698369,1756711107277,1500.0,0.00013868,2]
[382698374,1756711131031,1500.0,0.00013868,2]
[382698375,1756711154338,488.7,0.00013868,2]
[382698376,1756711226490,151.0,0.00013585,2]
[382698377,1756711227165,156.587,0.00013585,2]
[382698378,1756711227877,199.36998705,0.00013585,2]
[382698379,1756711233242,666.0,0.00013012,2]
[382698380,1756711255416,2009.49393792,0.00013909,2]
[382698381,1756711299954,20721.0858,0.00030546,60]
[382698404,1756711568766,151.0,0.00027397,120]
[382698443,1756711712909,151.0,0.00027397,120]
[382698533,1756711832545,-1200.0,0.00014007,2]
[382698534,1756711832554,-300.0,0.00014007,2]
[382698535,1756711832564,-1200.0,0.00014007,2]
[382698536,1756711832574,-270.0,0.00014007,2]
[382698537,1756711832585,-480.0,0.00014008,2]
[382698538,1756711832600,-888.02,0.00014008,2]
[382698539,1756711832610,-500.0,0.00014008,2]
[382698540,1756711832619,-500.0,0.00014008,2]
[382698541,1756711832629,-500.0,0.00014008,2]
[382698542,1756711832640,-500.0,0.00014008,2]
[382698543,1756711832650,-500.0,0.00014008,2]
[382698544,1756711832664,-500.0,0.00014008,2]
[382698545,1756711832673,-598.41399891,0.00014008,2]
[382698546,1756711832682,-500.0,0.00014008,2]
[382698547,1756711832691,-500.0,0.00014008,2]
[382698548,1756711832701,-400.0,0.00014008,2]
[382698549,1756711832710,-480.0,0.00014008,2]
[382698550,1756711832719,-0.42879077,0.00014008,2]
[382698551,1756711832731,-455.03731312,0.00014008,2]
[382698599,1756711840628,-528.4,0.00014008,2]
[382698601,1756711840638,-480.0,0.00014008,2]
[382698603,1756711840650,-480.0,0.00014008,2]
[382698604,1756711840660,-480.0,0.00014008,2]
[382698606,1756711840669,-9.75800374,0.00014008,2]
[382698651,1756711844730,-1786.66199626,0.00014008,2]
[382698652,1756711844740,-480.0,0.00014008,2]
[382698653,1756711844750,-480.0,0.00014008,2]
[382698654,1756711844760,-480.0,0.00014008,2]
[382698655,1756711844770,-992.31,0.00014008,2]
[382698656,1756711844780,-480.0,0.00014008,2]
[382698657,1756711844789,-480.0,0.00014008,2]
[382698658,1756711844799,-874.34,0.00014008,2]
[382698659,1756711844808,-253.75978591,0.00014008,2]
[382698660,1756711844817,-570.86347157,0.00014008,2]
[382698661,1756711844829,-179.83652843,0.00014008,2]
[382698662,1756711844838,-1043.32,0.00014008,2]
[382698664,1756711844847,-480.0,0.00014008,2]
[382698666,1756711844857,-480.0,0.00014008,2]
[382698668,1756711844866,-504.79,0.00014008,2]
[382698669,1756711844875,-480.0,0.00014008,2]
[382698670,1756711844884,-1506.8,0.00014008,2]
[382698671,1756711844895,-558.2,0.00014008,2]
[382698672,1756711844905,-480.0,0.00014008,2]
[382698673,1756711844914,-480.0,0.00014008,2]
[382698674,1756711844924,-480.0,0.00014008,2]
[382698675,1756711844933,-952.89,0.00014008,2]
[382698676,1756711844943,-480.0,0.00014008,2]
[382698677,1756711844952,-480.0,0.00014008,2]
[382698678,1756711844962,-300.41805589,0.00014008,2]
[382698679,1756711844971,-480.0,0.00014009,2]
[382698680,1756711844981,-31.26533148,0.00014009,2]
[382698681,1756711844993,-550.13041047,0.00014009,2]
[382698683,1756711846580,-186.9679042,0.00014007,2]
[382698684,1756711846590,-1470.56,0.00014008,2]
[382698685,1756711846600,-131.45425805,0.00014009,2]
[382698686,1756711846610,-480.0,0.00014009,2]
[382698687,1756711846621,-480.0,0.00014009,2]
[382698688,1756711846630,-480.0,0.00014009,2]
[382698689,1756711846640,-480.0,0.00014009,2]
[382698691,1756711846651,-480.0,0.00014009,2]
[382698692,1756711846661,-480.0,0.00014009,2]
[382698693,1756711846671,-319.71783775,0.00014009,2]
[382698698,1756711848205,-160.28216225,0.00014009,2]
[382698699,1756711848215,-480.0,0.00014009,2]
[382698700,1756711848224,-480.0,0.00014009,2]
[382698701,1756711848234,-500.0,0.00014009,2]
[382698702,1756711848243,-480.0,0.00014009,2]
[382698703,1756711848253,-480.0,0.00014009,2]
[382698704,1756711848263,-480.0,0.00014009,2]
[382698705,1756711848273,-480.0,0.00014009,2]
[382698706,1756711848282,-480.0,0.00014009,2]
[382698707,1756711848292,-480.0,0.00014009,2]
[382698708,1756711848302,-480.0,0.00014009,2]
[382698709,1756711848311,-480.0,0.00014009,2]
[382698710,1756711848321,-480.0,0.00014009,2]
[382698711,1756711848330,-481.23867748,0.00014009,2]
[382698712,1756711848340,-480.0,0.00014009,2]
[382698713,1756711848350,-480.0,0.00014009,2]
[382698714,1756711848359,-480.0,0.00014009,2]
[382698715,1756711848369,-480.0,0.00014009,2]
[382698716,1756711848379,-480.0,0.00014009,2]
[382698717,1756711848388,-194.02137911,0.00014009,2]
[382698718,1756711848402,-480.0,0.00014009,2]
[382698719,1756711848411,-480.0,0.00014009,2]
[382698720,1756711848420,-480.0,0.00014009,2]
[382698721,1756711848430,-480.0,0.00014009,2]
[382698722,1756711848439,-480.0,0.00014009,2]
[382698723,1756711848449,-611.02,0.00014009,2]
[382698724,1756711848459,-480.0,0.00014009,2]
[382698725,1756711848470,-480.0,0.00014009,2]
[382698726,1756711848479,-480.0,0.00014009,2]
[382698727,1756711848488,-483.34367412,0.00014009,2]
[382698728,1756711848498,-484.82,0.00014009,2]
[382698729,1756711848507,-424.32118277,0.00014009,2]
[382698730,1756711848516,-756.6,0.00014009,2]
[382698731,1756711848526,-482.7155595,0.00014009,2]
[382698732,1756711848536,-805.05,0.00014009,2]
[382698733,1756711848545,-480.0,0.00014009,2]
[382698734,1756711848556,-480.0,0.00014009,2]
[382698735,1756711848566,-519.32,0.00014009,2]
[382698736,1756711848575,-480.0,0.00014009,2]
[382698737,1756711848586,-480.0,0.00014009,2]
[382698738,1756711848596,-480.0,0.00014009,2]
[382698739,1756711848605,-423.21170726,0.00014009,2]
[382698740,1756711848615,-480.0,0.00014009,2]
[382698741,1756711848624,-480.0,0.00014009,2]
[382698742,1756711848634,-480.0,0.00014009,2]
[382698743,1756711848646,-481.48598051,0.00014009,2]
[382698744,1756711848655,-480.0,0.00014009,2]
[382698745,1756711848665,-480.0,0.00014009,2]
[382698746,1756711848675,-480.0,0.00014009,2]
[382698747,1756711848685,-481.97745173,0.00014009,2]
[382698748,1756711848695,-480.0,0.00014009,2]
[382698749,1756711848705,-480.0,0.00014009,2]
[382698750,1756711848715,-480.0,0.00014009,2]
[382698751,1756711848724,-459.68315562,0.00014009,2]
[382698752,1756711848734,-482.3668287,0.00014009,2]
[382698753,1756711848744,-480.0,0.00014009,2]
[382698754,1756711848754,-480.0,0.00014009,2]
[382698755,1756711848763,-480.0,0.00014009,2]
[382698756,1756711848773,-481.41751036,0.00014009,2]
[382698757,1756711848782,-481.47504995,0.00014009,2]
[382698758,1756711848791,-480.0,0.00014009,2]
[382698759,1756711848800,-480.95839622,0.00014009,2]
[382698760,1756711848811,-480.0,0.00014009,2]
[382698761,1756711848820,-481.93303261,0.00014009,2]
[382698762,1756711848829,-502.33719935,0.00014009,2]
[382698763,1756711848839,-749.52,0.00014009,2]
[382698764,1756711848849,-480.0,0.00014009,2]
[382698765,1756711848858,-3251.74,0.00014009,2]
[382698766,1756711848868,-526.31,0.00014009,2]
[382698767,1756711848877,-480.0,0.00014009,2]
[382698768,1756711848886,-480.0,0.00014009,2]
[382698769,1756711848898,-573.68,0.00014009,2]
[382698770,1756711848908,-480.0,0.00014009,2]
[382698771,1756711848917,-480.0,0.00014009,2]
[382698772,1756711848927,-681.49,0.00014009,2]
[382698773,1756711848936,-480.0,0.00014009,2]
[382698774,1756711848946,-1196.68,0.00014009,2]
[382698775,1756711848955,-401.46772138,0.00014009,2]
[382698776,1756711848964,-480.0,0.00014009,2]
[382698777,1756711848973,-626.38,0.00014009,2]
[382698778,1756711848983,-480.0,0.00014009,2]
[382698779,1756711848992,-480.0,0.00014009,2]
[382698780,1756711849002,-480.0,0.00014009,2]
[382698781,1756711849011,-659.75,0.00014009,2]
[382698782,1756711849021,-480.0,0.00014009,2]
[382698783,1756711849030,-480.0,0.00014009,2]
[382698784,1756711849040,-480.0,0.00014009,2]
[382698785,1756711849050,-803.81,0.00014009,2]
[382698786,1756711849060,-724.49,0.00014009,2]
[382698787,1756711849069,-480.0,0.00014009,2]
[382698788,1756711849078,-656.18,0.00014009,2]
[382698789,1756711849088,-480.0,0.00014009,2]
[382698790,1756711849097,-480.0,0.00014009,2]
[382698791,1756711849107,-480.0,0.00014009,2]
[382698792,1756711849116,-480.0,0.00014009,2]
[382698793,1756711849125,-480.0,0.00014009,2]
[382698794,1756711849135,-480.0,0.00014009,2]
[382698795,1756711849145,-480.0,0.00014009,2]
[382698796,1756711849155,-461.92276964,0.00014009,2]
[382698797,1756711849165,-480.0,0.00014009,2]
[382698798,1756711849174,-480.0,0.00014009,2]
[382698799,1756711849185,-480.0,0.00014009,2]
[382698800,1756711849194,-449.11302619,0.00014009,2]
[382698801,1756711849203,-550.11,0.00014009,2]
[382698802,1756711849212,-481.0453984,0.00014009,2]
[382698803,1756711849220,-480.0,0.00014009,2]
[382698804,1756711849229,-748.32,0.00014009,2]
[382698805,1756711849238,-489.89570233,0.00014009,2]
[382698806,1756711849247,-480.0,0.00014009,2]
[382698807,1756711849257,-480.0,0.00014009,2]
[382698808,1756711849266,-480.0,0.00014009,2]
[382698809,1756711849275,-3906.14,0.00014009,2]
[382698810,1756711849283,-748.38,0.00014009,2]
[382698811,1756711849292,-480.0,0.00014009,2]
[382698812,1756711849300,-620.32,0.00014009,2]
[382698813,1756711849310,-480.0,0.00014009,2]
[382698814,1756711849318,-480.0,0.00014009,2]
[382698815,1756711849327,-480.0,0.00014009,2]
[382698816,1756711849336,-480.70557139,0.00014009,2]
[382698817,1756711849345,-480.0,0.00014009,2]
[382698818,1756711849353,-537.67,0.00014009,2]
[382698819,1756711849362,-1612.04,0.00014009,2]
[382698820,1756711849371,-4468.34,0.00014009,2]
[382698821,1756711849379,-480.0,0.00014009,2]
[382698822,1756711849388,-480.0,0.00014009,2]
[382698823,1756711849399,-465.19537708,0.00014009,2]
[382698824,1756711849408,-1065.06,0.00014009,2]
[382698825,1756711849417,-480.0,0.00014009,2]
[382698826,1756711849426,-480.0,0.00014009,2]
[382698827,1756711849435,-491.95,0.00014009,2]
[382698828,1756711849443,-582.85,0.00014009,2]
[382698829,1756711849453,-480.0,0.00014009,2]
[382698830,1756711849463,-480.0,0.00014009,2]
[382698831,1756711849476,-480.0,0.00014009,2]
[382698832,1756711849485,-281.92799011,0.00014009,2]
[382698833,1756711849495,-963.3,0.00014009,2]
[382698834,1756711849505,-480.0,0.00014009,2]
[382698835,1756711849515,-480.0,0.00014009,2]
[382698836,1756711849525,-480.0,0.00014009,2]
[382698837,1756711849534,-435.55549642,0.00014009,2]
[382698838,1756711849543,-432.24097186,0.00014009,2]
[382698839,1756711849553,-480.0,0.00014009,2]
[382698840,1756711849562,-490.43,0.00014009,2]
[382698841,1756711849571,-480.0,0.00014009,2]
[382698842,1756711849581,-480.0,0.00014009,2]
[382698843,1756711849590,-480.0,0.00014009,2]
[382698844,1756711849600,-480.0,0.00014009,2]
[382698845,1756711849609,-482.07932403,0.00014009,2]
[382698846,1756711849619,-464.93071131,0.00014009,2]
[382698847,1756711849629,-359.62560657,0.00014009,2]
[382698848,1756711849639,-737.17,0.00014009,2]
[382698849,1756711849651,-809.35,0.00014009,2]
[382698850,1756711849661,-480.0,0.00014009,2]
[382698851,1756711849671,-480.0,0.00014009,2]
[382698852,1756711849681,-480.0,0.00014009,2]
[382698853,1756711849690,-480.0,0.00014009,2]
[382698854,1756711849700,-480.0,0.00014009,2]
[382698855,1756711849709,-480.0,0.00014009,2]
[382698856,1756711849718,-620.14,0.00014009,2]
[382698857,1756711849728,-2199.24,0.00014009,2]
[382698858,1756711849737,-163.40117913,0.00014009,2]
[382698859,1756711849747,-480.0,0.00014009,2]
[382698860,1756711849757,-802.92,0.00014009,2]
[382698861,1756711849766,-4501.07,0.00014009,2]
[382698862,1756711849776,-481.9906898,0.00014009,2]
[382698863,1756711849786,-482.39673868,0.00014009,2]
[382698864,1756711849795,-955.3,0.00014009,2]
[382698865,1756711849805,-480.0,0.00014009,2]
[382698866,1756711849815,-480.0,0.00014009,2]
[382698867,1756711849824,-480.0,0.00014009,2]
[382698868,1756711849833,-451.85802132,0.00014009,2]
[382698869,1756711849842,-480.0,0.00014009,2]
[382698870,1756711849852,-480.0,0.00014009,2]
[382698871,1756711849861,-480.0,0.00014009,2]
[382698872,1756711849870,-480.0,0.00014009,2]
[382698873,1756711849879,-480.0,0.00014009,2]
[382698874,1756711849890,-480.0,0.00014009,2]
[382698875,1756711849901,-480.0,0.00014009,2]
[382698876,1756711849911,-500.0,0.00014009,2]
[382698877,1756711849920,-480.0,0.0001401,2]
[382698878,1756711849930,-712.12,0.0001401,2]
[382698879,1756711849941,-500.0,0.0001401,2]
[382698880,1756711849950,-500.0,0.0001401,2]
[382698881,1756711849960,-500.0,0.0001401,2]
[382698882,1756711849969,-500.0,0.0001401,2]
[382698883,1756711849979,-480.0,0.0001401,2]
[382698884,1756711849988,-480.0,0.0001401,2]
[382698885,1756711849998,-737.3,0.0001401,2]
[382698886,1756711850008,-480.0,0.0001401,2]
[382698887,1756711850017,-480.0,0.0001401,2]
[382698888,1756711850026,-480.0,0.0001401,2]
[382698889,1756711850036,-480.0,0.0001401,2]
[382698890,1756711850045,-480.0,0.0001401,2]
[382698891,1756711850055,-604.66,0.0001401,2]
[382698892,1756711850065,-480.0,0.0001401,2]
[382698893,1756711850075,-480.0,0.0001401,2]
[382698894,1756711850086,-480.0,0.0001401,2]
[382698895,1756711850095,-480.0,0.0001401,2]
[382698896,1756711850107,-480.0,0.0001401,2]
[382698897,1756711850117,-480.0,0.0001401,2]
[382698898,1756711850127,-480.0,0.0001401,2]
[382698899,1756711850138,-512.05,0.0001401,2]
[382698900,1756711850148,-1012.67,0.0001401,2]
[382698901,1756711850158,-481.27326158,0.0001401,2]
[382698902,1756711850167,-480.0,0.0001401,2]
[382698903,1756711850179,-480.0,0.0001401,2]
[382698904,1756711850189,-480.0,0.0001401,2]
[382698905,1756711850199,-480.0,0.0001401,2]
[382698906,1756711850210,-1046.18,0.0001401,2]
[382698907,1756711850220,-480.0,0.0001401,2]
[382698908,1756711850230,-844.16,0.0001401,2]
[382698909,1756711850239,-480.0,0.0001401,2]
[382698910,1756711850248,-437.65009759,0.0001401,2]
[382698911,1756711850258,-480.0,0.0001401,2]
[382698912,1756711850267,-1034.37,0.0001401,2]
[382698913,1756711850276,-480.0,0.0001401,2]
[382698914,1756711850285,-480.0,0.0001401,2]
[382698915,1756711850294,-888.6,0.0001401,2]
[382698916,1756711850303,-480.0,0.0001401,2]
[382698917,1756711850312,-480.0,0.0001401,2]
[382698918,1756711850322,-480.0,0.0001401,2]
[382698919,1756711850331,-480.0,0.0001401,2]
[382698920,1756711850342,-480.0,0.0001401,2]
[382698921,1756711850354,-513.04,0.0001401,2]
[382698922,1756711850365,-480.0,0.0001401,2]
[382698923,1756711850375,-480.0,0.0001401,2]
[382698924,1756711850386,-318.9582976,0.0001401,2]
[382698925,1756711850397,-895.59,0.0001401,2]
[382698926,1756711850409,-480.0,0.0001401,2]
[382698927,1756711850422,-480.0,0.0001401,2]
[382698928,1756711850432,-923.7,0.0001401,2]
[382698929,1756711850443,-480.0,0.0001401,2]
[382698930,1756711850454,-482.09530122,0.0001401,2]
[382698931,1756711850465,-768.53,0.0001401,2]
[382698932,1756711850483,-480.0,0.0001401,2]
[382698933,1756711850493,-1056.06,0.0001401,2]